fUST/lending_fUST_20240115
["ID","MTS","AMOUNT","RATE_DAILY","PERIOD"]
[311592937,1705259447153,-500.0,0.00027945,2]
[311592938,1705259447162,-533.04482438,0.00027945,2]
[311592939,1705259447171,-968.29,0.00027945,2]
[311592940,1705259447180,-317.23703066,0.00027945,2]
[311592941,1705259447189,-601.82814943,0.00027945,2]
[311592942,1705259447198,-500.0,0.00027945,2]
[311592943,1705259447208,-500.0,0.00027945,2]
[311592944,1705259447217,-503.3309175,0.00027945,2]
[311592945,1705259447227,-2032.25,0.00027945,2]
[311592946,1705259447236,-500.0,0.00027945,2]
[311592947,1705259447246,-521.1942348,0.00027945,2]
[311592948,1705259447254,-500.0,0.00027945,2]
[311592949,1705259447263,-474.74719586,0.00027945,2]
[311592950,1705259447272,-1669.66,0.00027945,2]
[311592951,1705259447281,-583.1174725,0.00027945,2]
[311592952,1705259447290,-1492.53,0.00027945,2]
[311592953,1705259447299,-500.0,0.00027945,2]
[311592954,1705259447309,-500.0,0.00027945,2]
[311592955,1705259447318,-500.0,0.00027945,2]
[311592956,1705259447327,-500.0,0.00027945,2]
[311592957,1705259447336,-500.0,0.00027945,2]
[311592958,1705259447346,-634.6,0.00027945,2]
[311592959,1705259447355,-570.69,0.00027945,2]
[311592960,1705259447364,-500.0,0.00027945,2]
[311592961,1705259447373,-500.0,0.00027945,2]
[311592962,1705259447382,-500.0,0.00027945,2]
[311592963,1705259447391,-500.0,0.00027945,2]
[311592964,1705259447400,-1022.6,0.00027945,2]
[311592965,1705259447412,-500.0,0.00027945,2]
[311592966,1705259447432,-500.0,0.00027945,2]
[311592967,1705259447445,-500.0,0.00027945,2]
[311592968,1705259447462,-505.41,0.00027945,2]
[311592969,1705259447479,-461.79230373,0.00027945,2]
[311592970,1705259447496,-500.0,0.00027945,2]
[311592971,1705259447509,-500.0,0.00027945,2]
[311592972,1705259447525,-500.0,0.00027945,2]
[311592973,1705259447545,-500.0,0.00027945,2]
[311592974,1705259447558,-500.0,0.00027945,2]
[311592975,1705259447575,-500.0,0.00027945,2]
[311592976,1705259447590,-201.42102991,0.00027945,2]
[311592977,1705259447605,-500.0,0.00027945,2]
[311592978,1705259447620,-500.0,0.00027945,2]
[311592979,1705259447642,-500.0,0.00027945,2]
[311592980,1705259447660,-302.94543541,0.00027945,2]
[311592981,1705259447671,-1099.53,0.00027945,2]
[311592982,1705259447684,-500.0,0.00027945,2]
[311592983,1705259447698,-500.0,0.00027945,2]
[311592984,1705259447712,-500.0,0.00027945,2]
[311592985,1705259447724,-500.0,0.00027945,2]
[311592986,1705259447736,-3746.8,0.00027945,2]
[311592987,1705259447752,-417.05988625,0.00027945,2]
[311592988,1705259447764,-258.34941335,0.00027945,2]
[311592989,1705259447776,-500.0,0.00027945,2]
[311592990,1705259447789,-500.0,0.00027945,2]
[311592991,1705259447801,-500.0,0.00027945,2]
[311592992,1705259447813,-564.37200595,0.00027945,2]
[311592993,1705259447826,-500.0,0.00027945,2]
[311592994,1705259447838,-500.0,0.00027945,2]
[311592995,1705259447851,-1508.59,0.00027945,2]
[311592996,1705259447863,-500.0,0.00027945,2]
[311592997,1705259447876,-652.82,0.00027945,2]
[311592998,1705259447889,-500.0,0.00027945,2]
[311592999,1705259447902,-454.73107322,0.00027945,2]
[311593000,1705259447915,-500.0,0.00027945,2]
[311593001,1705259447928,-362.72743992,0.00027945,2]
[311593002,1705259447941,-509.48319526,0.00027945,2]
[311593003,1705259447954,-500.0,0.00027945,2]
[311593004,1705259447967,-500.0,0.00027945,2]
[311593005,1705259447980,-500.0,0.00027945,2]
[311593006,1705259447992,-500.0,0.00027945,2]
[311593007,1705259448006,-500.0,0.00027945,2]
[311593008,1705259448019,-500.0,0.00027945,2]
[311593009,1705259448031,-1927.39,0.00027945,2]
[311593010,1705259448044,-1775.11,0.00027945,2]
[311593011,1705259448058,-500.0,0.00027945,2]
[311593012,1705259448071,-587.53,0.00027945,2]
[311593013,1705259448084,-629.07086596,0.00027945,2]
[311593014,1705259448097,-500.0,0.00027945,2]
[311593015,1705259448111,-500.0,0.00027945,2]
[311593016,1705259448120,-500.0,0.00027945,2]
[311593017,1705259448220,-9796.43,0.00027945,2]
[311593018,1705259448235,-2057.53,0.00027945,2]
[311593019,1705259448245,-1530.23,0.00027945,2]
[311593020,1705259448254,-902.1,0.00027945,2]
[311593021,1705259448263,-11444.19,0.00027945,2]
[311593022,1705259448273,-1143.52,0.00027945,2]
[311593023,1705259448282,-500.0,0.00027945,2]
[311593024,1705259448291,-500.0,0.00027945,2]
[311593025,1705259448300,-500.0,0.00027945,2]
[311593026,1705259448309,-500.0,0.00027945,2]
[311593027,1705259448318,-2260.32,0.00027945,2]
[311593028,1705259448327,-5671.47,0.00027945,2]
[311593029,1705259448336,-4081.98,0.00027945,2]
[311593030,1705259448346,-500.0,0.00027945,2]
[311593031,1705259448355,-500.0,0.00027945,2]
[311593032,1705259448364,-500.0,0.00027945,2]
[311593033,1705259448373,-500.0,0.00027945,2]
[311593034,1705259448382,-588.25,0.00027945,2]
[311593035,1705259448392,-556.48,0.00027945,2]
[311593036,1705259448400,-500.0,0.00027945,2]
[311593037,1705259448410,-500.0,0.00027945,2]
[311593038,1705259448418,-701.88,0.00027945,2]
[311593039,1705259448428,-1293.9,0.00027945,2]
[311593040,1705259448436,-1098.06,0.00027945,2]
[311593041,1705259448445,-8630.08,0.00027945,2]
[311593042,1705259448454,-593.55,0.00027945,2]
[311593043,1705259448463,-500.0,0.00027945,2]
[311593044,1705259448473,-706.78,0.00027945,2]
[311593045,1705259448482,-500.0,0.00027945,2]
[311593046,1705259448491,-500.0,0.00027945,2]
[311593047,1705259448500,-508.10253494,0.00027945,2]
[311593048,1705259448510,-500.0,0.00027945,2]
[311593049,1705259448518,-308.24075342,0.00027945,2]
[311593050,1705259448527,-500.0,0.00027945,2]
[311593051,1705259448537,-500.0,0.00027945,2]
[311593052,1705259448547,-22112.49,0.00027945,2]
[311593053,1705259448556,-500.0,0.00027945,2]
[311593054,1705259448566,-500.0,0.00027945,2]
[311593055,1705259448574,-167.07286369,0.00027945,2]
[311593056,1705259448583,-591.05,0.00027945,2]
[311593057,1705259448592,-2648.25,0.00027945,2]
[311593058,1705259448601,-39639.07,0.00027945,2]
[311593059,1705259448610,-500.0,0.00027945,2]
[311593060,1705259448619,-387.36439512,0.00027945,2]
[311593061,1705259448628,-500.0,0.00027945,2]
[311593062,1705259448637,-500.0,0.00027945,2]
[311593063,1705259448646,-500.0,0.00027945,2]
[311593064,1705259448655,-500.0,0.00027945,2]
[311593065,1705259448664,-500.0,0.00027945,2]
[311593066,1705259448673,-500.0,0.00027945,2]
[311593067,1705259448682,-500.0,0.00027945,2]
[311593068,1705259448691,-1516.3,0.00027945,2]
[311593069,1705259448701,-500.0,0.00027945,2]
[311593070,1705259448710,-500.0,0.00027945,2]
[311593071,1705259448719,-500.0,0.00027945,2]
[311593072,1705259448728,-500.0,0.00027945,2]
[311593073,1705259448737,-500.0,0.00027945,2]
[311593074,1705259448746,-1972.0,0.00027945,2]
[311593075,1705259448755,-500.0,0.00027945,2]
[311593076,1705259448765,-500.0,0.00027945,2]
[311593077,1705259448774,-839.78,0.00027945,2]
[311593078,1705259448783,-1022.58,0.00027945,2]
[311593079,1705259448793,-500.0,0.00027945,2]
[311593080,1705259448802,-1130.74,0.00027945,2]
[311593081,1705259448810,-500.0,0.00027945,2]
[311593082,1705259448819,-523.95040652,0.00027945,2]
[311593083,1705259448828,-500.0,0.00027945,2]
[311593084,1705259448837,-500.0,0.00027945,2]
[311593085,1705259448846,-3503.3,0.00027945,2]
[311593086,1705259448855,-500.0,0.00027945,2]
[311593087,1705259448865,-799.29,0.00027945,2]
[311593088,1705259448874,-8748.06,0.00027945,2]
[311593089,1705259448883,-513.83673442,0.00027945,2]
[311593090,1705259448892,-500.0,0.00027945,2]
[311593091,1705259448901,-507.54117207,0.00027945,2]
[311593092,1705259448911,-500.0,0.00027945,2]
[311593093,1705259448920,-500.0,0.00027945,2]
[311593094,1705259448929,-1000.0,0.00027945,2]
[311593095,1705259448937,-500.0,0.00027945,2]
[311593096,1705259448947,-500.0,0.00027945,2]
[311593097,1705259448957,-4109.29344934,0.00028,2]
[311593098,1705259448966,-507.13354579,0.00028,2]
[311593099,1705259448975,-500.0,0.00028217,2]
[311593100,1705259448983,-160.64736873,0.00028218,10]
[311593101,1705259448993,-500.0,0.00028218,2]
[311593102,1705259449002,-500.0,0.00028218,2]
[311593103,1705259449011,-500.0,0.00028218,2]
[311593104,1705259449021,-151.0,0.00028219,2]
[311593105,1705259449030,-151.0,0.00028219,2]
[311593106,1705259449039,-151.0,0.00028219,2]
[311593107,1705259449048,-151.0,0.00028219,2]
[311593108,1705259449057,-1850.849096,0.00028219,2]
[311593109,1705259449066,-1850.849096,0.00028219,2]
[311593110,1705259449075,-1850.849096,0.00028219,2]
[311593111,1705259449084,-1850.849096,0.00028219,2]
[311593112,1705259449094,-3019.600149,0.00028219,2]
[311593113,1705259449103,-3019.600149,0.00028219,2]
[311593114,1705259449112,-3019.600149,0.00028219,2]
[311593115,1705259449122,-3019.600156,0.00028219,2]
[311593116,1705259449131,-500.0,0.00028219,2]
[311593117,1705259449140,-643.66658219,0.00028219,2]
[311593118,1705259449149,-500.0,0.00028219,2]
[311593119,1705259449157,-500.0,0.00028219,2]
[311593120,1705259449166,-500.0,0.00028219,2]
[311593121,1705259449175,-264.91785626,0.00028219,2]
[311593122,1705259449184,-500.0,0.00028219,2]
[311593123,1705259449193,-674.27,0.00028219,2]
[311593124,1705259449202,-500.0,0.00028219,2]
[311593125,1705259449211,-500.0,0.00028219,2]
[311593126,1705259449220,-500.0,0.00028219,2]
[311593127,1705259449228,-500.0,0.00028219,2]
[311593128,1705259449238,-500.0,0.00028219,2]
[311593129,1705259449248,-500.0,0.00028219,2]
[311593130,1705259449257,-500.0,0.00028219,2]
[311593131,1705259449266,-593.88964786,0.00028219,2]
[311593132,1705259449276,-500.0,0.00028219,2]
[311593133,1705259449285,-500.0,0.00028219,2]
[311593134,1705259449294,-500.0,0.00028219,2]
[311593135,1705259449303,-2049.77,0.00028219,2]
[311593136,1705259449312,-500.0,0.00028219,2]
[311593137,1705259449321,-500.0,0.00028219,2]
[311593138,1705259449330,-500.0,0.00028219,2]
[311593139,1705259449339,-3596.16,0.00028219,2]
[311593140,1705259449348,-500.0,0.00028219,2]
[311593141,1705259449358,-1704.29,0.00028219,2]
[311593142,1705259449367,-500.0,0.00028219,2]
[311593143,1705259449375,-1016.15,0.00028219,2]
[311593144,1705259449384,-500.0,0.00028219,2]
[311593145,1705259449393,-535.12,0.00028219,2]
[311593146,1705259449402,-524.89574781,0.00028219,2]
[311593147,1705259449411,-1146.21,0.00028219,2]
[311593148,1705259449420,-365.14044456,0.00028219,2]
[311593149,1705259449429,-804.67,0.00028219,2]
[311593150,1705259449439,-500.0,0.00028219,2]
[311593151,1705259449448,-500.0,0.00028219,2]
[311593152,1705259449457,-500.0,0.00028219,2]
[311593153,1705259449466,-500.0,0.00028219,2]
[311593154,1705259449475,-500.0,0.00028219,2]
[311593155,1705259449484,-863.73,0.00028219,2]
[311593156,1705259449494,-500.0,0.00028219,2]
[311593157,1705259449503,-500.0,0.00028219,2]
[311593158,1705259449512,-500.0,0.00028219,2]
[311593159,1705259449521,-500.0,0.00028219,2]
[311593160,1705259449531,-500.0,0.00028219,2]
[311593161,1705259449544,-968.29,0.00028219,2]
[311593162,1705259449554,-500.0,0.00028219,2]
[311593163,1705259449563,-2032.25,0.00028219,2]
[311593164,1705259449572,-619.09681012,0.00028219,2]
[311593165,1705259449581,-500.0,0.00028219,2]
[311593166,1705259449590,-1669.66,0.00028219,2]
[311593167,1705259449599,-1492.53,0.00028219,2]
[311593168,1705259449608,-500.0,0.00028219,2]
[311593169,1705259449617,-572.74150537,0.00028219,2]
[311593170,1705259449627,-500.0,0.00028219,2]
[311593171,1705259449636,-500.0,0.00028219,2]
[311593172,1705259449645,-634.6,0.00028219,2]
[311593173,1705259449654,-500.0,0.00028219,2]
[311593174,1705259449663,-570.69,0.00028219,2]
[311593175,1705259449672,-500.0,0.00028219,2]
[311593176,1705259449681,-236.40930605,0.00028219,2]
[311593177,1705259449691,-500.0,0.00028219,2]
[311593178,1705259449700,-1022.6,0.00028219,2]
[311593179,1705259449775,-500.0,0.00028219,2]
[311593180,1705259449785,-500.0,0.00028219,2]
[311593181,1705259449795,-500.0,0.00028219,2]
[311593182,1705259449804,-505.41,0.00028219,2]
[311593183,1705259449814,-500.0,0.00028219,2]
[311593184,1705259449823,-500.0,0.00028219,2]
[311593185,1705259449832,-500.0,0.00028219,2]
[311593186,1705259449841,-500.0,0.00028219,2]
[311593187,1705259449851,-500.0,0.00028219,2]
[311593188,1705259449860,-500.0,0.00028219,2]
[311593189,1705259449870,-500.0,0.00028219,2]
[311593190,1705259449879,-587.58184042,0.00028219,2]
[311593191,1705259449888,-500.0,0.00028219,2]
[311593192,1705259449897,-1099.53,0.00028219,2]
[311593193,1705259449906,-500.0,0.00028219,2]
[311593194,1705259449916,-500.0,0.00028219,2]
[311593195,1705259449924,-398.43963782,0.00028219,2]
[311593196,1705259449934,-500.0,0.00028219,2]
[311593197,1705259449943,-3746.8,0.00028219,2]
[311593198,1705259449952,-500.0,0.00028219,2]
[311593199,1705259449961,-500.0,0.00028219,2]
[311593200,1705259449970,-500.0,0.00028219,2]
[311593201,1705259449979,-500.0,0.00028219,2]
[311593202,1705259449989,-1508.59,0.00028219,2]
[311593203,1705259449998,-652.82,0.00028219,2]
[311593204,1705259450007,-500.0,0.00028219,2]
[311593205,1705259450016,-500.0,0.00028219,2]
[311593206,1705259450025,-500.0,0.00028219,2]
[311593207,1705259450035,-500.0,0.00028219,2]
[311593208,1705259450045,-616.08704125,0.00028219,2]
[311593209,1705259450054,-500.0,0.00028219,2]
[311593210,1705259450063,-500.0,0.00028219,2]
[311593211,1705259450072,-1927.39,0.00028219,2]
[311593212,1705259450081,-1775.11,0.00028219,2]
[311593213,1705259450091,-500.0,0.00028219,2]
[311593214,1705259450100,-587.53,0.00028219,2]
[311593215,1705259450109,-500.0,0.00028219,2]
[311593216,1705259450118,-500.0,0.00028219,2]
[311593217,1705259450127,-324.19753497,0.00028219,2]
[311593218,1705259450136,-9796.43,0.00028219,2]
[311593219,1705259450145,-2057.53,0.00028219,2]
[311593220,1705259450154,-1530.23,0.00028219,2]
[311593221,1705259450163,-902.1,0.00028219,2]
[311593222,1705259450172,-11444.19,0.00028219,2]
[311593223,1705259450181,-1143.52,0.00028219,2]
[311593224,1705259450190,-500.0,0.00028219,2]
[311593225,1705259450200,-500.0,0.00028219,2]
[311593226,1705259450209,-320.31361279,0.00028219,2]
[311593227,1705259450218,-500.0,0.00028219,2]
[311593228,1705259450227,-2260.32,0.00028219,2]
[311593229,1705259450236,-5671.47,0.00028219,2]
[311593230,1705259450245,-4081.98,0.00028219,2]
[311593231,1705259450255,-500.0,0.00028219,2]
[311593232,1705259450264,-500.0,0.00028219,2]
[311593233,1705259450274,-500.0,0.00028219,2]
[311593234,1705259450283,-500.0,0.00028219,2]
[311593235,1705259450292,-588.25,0.00028219,2]
[311593236,1705259450302,-556.48,0.00028219,2]
[311593237,1705259450311,-500.0,0.00028219,2]
[311593238,1705259450321,-500.0,0.00028219,2]
[311593239,1705259450330,-701.88,0.00028219,2]
[311593240,1705259450339,-1098.06,0.00028219,2]
[311593241,1705259450348,-1293.9,0.00028219,2]
[311593242,1705259450357,-8630.08,0.00028219,2]
[311593243,1705259450367,-593.55,0.00028219,2]
[311593244,1705259450376,-500.0,0.00028219,2]
[311593245,1705259450385,-706.78,0.00028219,2]
[311593246,1705259450395,-500.0,0.00028219,2]
[311593247,1705259450404,-500.0,0.00028219,2]
[311593248,1705259450413,-500.0,0.00028219,2]
[311593249,1705259450422,-500.0,0.00028219,2]
[311593250,1705259450431,-22112.49,0.00028219,2]
[311593251,1705259450440,-500.0,0.00028219,2]
[311593252,1705259450449,-591.05,0.00028219,2]
[311593253,1705259450459,-2648.25,0.00028219,2]
[311593254,1705259450468,-20.3278533,0.00028219,2]
[311593255,1705259450614,-39618.7421467,0.00028219,2]
[311593256,1705259450623,-500.0,0.00028219,2]
[311593257,1705259450633,-500.0,0.00028219,2]
[311593258,1705259450643,-500.0,0.00028219,2]
[311593259,1705259450652,-500.0,0.00028219,2]
[311593260,1705259450662,-500.0,0.00028219,2]
[311593261,1705259450671,-413.27206186,0.00028219,2]
[311593262,1705259450680,-500.0,0.00028219,2]
[311593263,1705259450690,-552.3388353,0.00028219,2]
[311593264,1705259450699,-1516.3,0.00028219,2]
[311593265,1705259450708,-500.0,0.00028219,2]
[311593266,1705259450718,-500.0,0.00028219,2]
[311593267,1705259450727,-500.0,0.00028219,2]
[311593268,1705259450736,-500.0,0.00028219,2]
[311593269,1705259450746,-504.85185307,0.00028219,2]
[311593270,1705259450755,-1972.0,0.00028219,2]
[311593271,1705259450764,-500.0,0.00028219,2]
[311593272,1705259450773,-224.42834587,0.00028219,2]
[311593273,1705259450782,-839.78,0.00028219,2]
[311593274,1705259450792,-1022.58,0.00028219,2]
[311593275,1705259450801,-500.0,0.00028219,2]
[311593276,1705259450810,-1130.74,0.00028219,2]
[311593277,1705259450819,-500.0,0.00028219,2]
[311593278,1705259450828,-500.0,0.00028219,2]
[311593279,1705259450837,-500.0,0.00028219,2]
[311593280,1705259450847,-3503.3,0.00028219,2]
[311593281,1705259450856,-500.0,0.00028219,2]
[311593282,1705259450865,-799.29,0.00028219,2]
[311593283,1705259450874,-8748.06,0.00028219,2]
[311593284,1705259450883,-241.37743917,0.00028219,2]
[311593285,1705259450893,-500.0,0.00028219,2]
[311593286,1705259450901,-500.0,0.00028219,2]
[311593287,1705259450911,-1000.0,0.00028219,2]
[311593288,1705259450920,-500.0,0.00028219,2]
[311593289,1705259450929,-500.0,0.00028219,2]
[311593290,1705259450939,-2000.0,0.000284,2]
[311593291,1705259450949,-2000.0,0.0002841,2]
[311593292,1705259450958,-2000.0,0.0002842,2]
[311593293,1705259450968,-2000.0,0.0002843,2]
[311593294,1705259450977,-2000.0,0.0002844,2]
[311593295,1705259450986,-2000.0,0.0002845,2]
[311593296,1705259450996,-2000.0,0.0002846,2]
[311593297,1705259451005,-2000.0,0.0002847,2]
[311593298,1705259451014,-2000.0,0.0002848,2]
[311593299,1705259451097,-2000.0,0.0002849,2]
[311593300,1705259451106,-500.0,0.00028491,2]
[311593301,1705259451116,-500.0,0.00028492,2]
[311593302,1705259451125,-500.0,0.00028492,2]
[311593303,1705259451134,-151.0,0.00028493,2]
[311593304,1705259451143,-151.0,0.00028493,2]
[311593305,1705259451152,-151.0,0.00028493,2]
[311593306,1705259451162,-202.799999,0.00028493,2]
[311593307,1705259451171,-1850.849096,0.00028493,2]
[311593308,1705259451180,-1850.849096,0.00028493,2]
[311593309,1705259451190,-1850.849096,0.00028493,2]
[311593310,1705259451199,-1850.84910192,0.00028493,2]
[311593311,1705259451208,-305.18841791,0.00028493,2]
[311593312,1705259451218,-9047.09293089,0.00028493,7]
[311593313,1705259451227,-500.0,0.00028493,2]
[311593314,1705259451236,-500.0,0.00028493,2]
[311593315,1705259451247,-158.4023009,0.00028493,2]
[311593316,1705259451256,-500.0,0.00028493,2]
[311593317,1705259451266,-500.0,0.00028493,2]
[311593318,1705259451275,-674.27,0.00028493,2]
[311593319,1705259451285,-500.0,0.00028493,2]
[311593320,1705259451294,-500.0,0.00028493,2]
[311593321,1705259451303,-500.0,0.00028493,2]
[311593322,1705259451312,-500.0,0.00028493,2]
[311593323,1705259451322,-202.89223583,0.00028493,2]
[311593324,1705259451331,-500.0,0.00028493,2]
[311593325,1705259451340,-500.0,0.00028493,2]
[311593326,1705259451349,-500.0,0.00028493,2]
[311593327,1705259451359,-500.0,0.00028493,2]
[311593328,1705259451368,-190.21729444,0.00028493,2]
[311593329,1705259451377,-2049.77,0.00028493,2]
[311593330,1705259451387,-500.0,0.00028493,2]
[311593331,1705259451396,-500.0,0.00028493,2]
[311593332,1705259451406,-500.0,0.00028493,2]
[311593333,1705259451415,-3596.16,0.00028493,2]
[311593334,1705259451425,-500.0,0.00028493,2]
[311593335,1705259451434,-1704.29,0.00028493,2]
[311593336,1705259451443,-500.0,0.00028493,2]
[311593337,1705259451453,-1016.15,0.00028493,2]
[311593338,1705259451462,-500.0,0.00028493,2]
[311593339,1705259451472,-535.12,0.00028493,2]
[311593340,1705259451482,-1146.21,0.00028493,2]
[311593341,1705259451492,-804.67,0.00028493,2]
[311593342,1705259451502,-500.0,0.00028493,2]
[311593343,1705259451511,-500.0,0.00028493,2]
[311593344,1705259451521,-619.80948328,0.00028493,2]
[311593345,1705259451530,-500.0,0.00028493,2]
[311593346,1705259451540,-863.73,0.00028493,2]
[311593347,1705259451552,-500.0,0.00028493,2]
[311593348,1705259451561,-500.0,0.00028493,2]
[311593349,1705259451571,-500.0,0.00028493,2]
[311593350,1705259451581,-232.5828535,0.00028493,2]
[311593351,1705259451590,-968.29,0.00028493,2]
[311593352,1705259451599,-500.0,0.00028493,2]
[311593353,1705259451609,-2032.25,0.00028493,2]
[311593354,1705259451618,-500.0,0.00028493,2]
[311593355,1705259451629,-1669.66,0.00028493,2]
[311593356,1705259451639,-1492.53,0.00028493,2]
[311593357,1705259451648,-500.0,0.00028493,2]
[311593358,1705259451657,-500.0,0.00028493,2]
[311593359,1705259451665,-634.6,0.00028493,2]
[311593360,1705259451675,-500.0,0.00028493,2]
[311593361,1705259451684,-570.69,0.00028493,2]
[311593362,1705259451692,-500.0,0.00028493,2]
[311593363,1705259451701,-500.0,0.00028493,2]
[311593364,1705259451711,-1022.6,0.00028493,2]
[311593365,1705259451719,-500.0,0.00028493,2]
[311593366,1705259451728,-500.0,0.00028493,2]
[311593367,1705259451737,-500.0,0.00028493,2]
[311593368,1705259451747,-505.41,0.00028493,2]
[311593369,1705259451756,-500.0,0.00028493,2]
[311593370,1705259451765,-500.0,0.00028493,2]
[311593371,1705259451774,-500.0,0.00028493,2]
[311593372,1705259451783,-428.83876973,0.00028493,2]
[311593373,1705259451792,-500.0,0.00028493,2]
[311593374,1705259451801,-500.0,0.00028493,2]
[311593375,1705259451810,-500.0,0.00028493,2]
[311593376,1705259451819,-1099.53,0.00028493,2]
[311593377,1705259451828,-500.0,0.00028493,2]
[311593378,1705259451837,-500.0,0.00028493,2]
[311593379,1705259451846,-500.0,0.00028493,2]
[311593380,1705259451855,-3746.8,0.00028493,2]
[311593381,1705259451865,-500.0,0.00028493,2]
[311593382,1705259451874,-500.0,0.00028493,2]
[311593383,1705259451884,-500.0,0.00028493,2]
[311593384,1705259451893,-500.0,0.00028493,2]
[311593385,1705259451902,-1508.59,0.00028493,2]
[311593386,1705259451911,-652.82,0.00028493,2]
[311593387,1705259451920,-503.39727456,0.00028493,2]
[311593388,1705259451929,-500.0,0.00028493,2]
[311593389,1705259451938,-436.3188985,0.00028493,2]
[311593390,1705259451947,-500.0,0.00028493,2]
[311593391,1705259451956,-414.01200441,0.00028493,2]
[311593392,1705259451965,-1927.39,0.00028493,2]
[311593393,1705259451975,-1775.11,0.00028493,2]
[311593394,1705259451984,-500.0,0.00028493,2]
[311593395,1705259451993,-587.53,0.00028493,2]
[311593396,1705259452002,-500.0,0.00028493,2]
[311593397,1705259452011,-500.0,0.00028493,2]
[311593398,1705259452020,-9796.43,0.00028493,2]
[311593399,1705259452029,-2057.53,0.00028493,2]
[311593400,1705259452038,-1530.23,0.00028493,2]
[311593401,1705259452047,-902.1,0.00028493,2]
[311593402,1705259452056,-11444.19,0.00028493,2]
[311593403,1705259452065,-1143.52,0.00028493,2]
[311593404,1705259452075,-500.0,0.00028493,2]
[311593405,1705259452084,-500.0,0.00028493,2]
[311593406,1705259452093,-602.12179745,0.00028493,2]
[311593407,1705259452102,-2260.32,0.00028493,2]
[311593408,1705259452111,-5671.47,0.00028493,2]
[311593409,1705259452121,-4081.98,0.00028493,2]
[311593410,1705259452130,-500.0,0.00028493,2]
[311593411,1705259452139,-500.0,0.00028493,2]
[311593412,1705259452149,-500.0,0.00028493,2]
[311593413,1705259452158,-588.25,0.00028493,2]
[311593414,1705259452167,-556.48,0.00028493,2]
[311593415,1705259452176,-500.0,0.00028493,2]
[311593416,1705259452185,-500.0,0.00028493,2]
[311593417,1705259452195,-701.88,0.00028493,2]
[311593418,1705259452205,-1098.06,0.00028493,2]
[311593419,1705259452215,-1293.9,0.00028493,2]
[311593420,1705259452224,-8630.08,0.00028493,2]
[311593421,1705259452233,-593.55,0.00028493,2]
[311593422,1705259452243,-537.31070886,0.00028493,2]
[311593423,1705259452252,-706.78,0.00028493,2]
[311593424,1705259452262,-500.0,0.00028493,2]
[311593425,1705259452271,-500.0,0.00028493,2]
[311593426,1705259452280,-500.0,0.00028493,2]
[311593427,1705259452290,-22112.49,0.00028493,2]
[311593428,1705259452299,-545.31632648,0.00028493,2]
[311593429,1705259452308,-500.0,0.00028493,2]
[311593430,1705259452317,-591.05,0.00028493,2]
[311593431,1705259452326,-2648.25,0.00028493,2]
[311593432,1705259452335,-39639.07,0.00028493,2]
[311593433,1705259452344,-500.0,0.00028493,2]
[311593434,1705259452353,-500.0,0.00028493,2]
[311593435,1705259452362,-500.0,0.00028493,2]
[311593436,1705259452371,-500.0,0.00028493,2]